[Event "The Schackveckan 2023: Chessweek Elo-tournaments Group 1"]
[Site "Göteborgs schackcentrum, Vegagatan 20, Gothenburg, Sweden"]
[Date "2023.08.08"]
[Round "4.2"]
[White "Frisk, Anders"]
[Black "Tobiasson, Bjorn"]
[Result "0-1"]
[TimeControl "90 minutes for 40 moves + 30 minutes for the rest of the game + 30 seconds per move from move one."]
[WhiteFideId "1718797"]
[BlackFideId "1773682"]
[WhiteElo "1808"]
[BlackElo "1830"]

1. c4 {[%clk 01:30:57]} {[%emt 00:00:02]} c6 {[%clk 01:30:50]} {[%emt
00:00:11]} 2. e4 {[%clk 01:31:10]} {[%emt 00:00:16]} d5 {[%clk 01:31:03]}
{[%emt 00:00:18]} 3. cxd5 {[%clk 01:31:15]} {[%emt 00:00:25]} cxd5 {[%clk
01:31:31]} {[%emt 00:00:02]} 4. exd5 {[%clk 01:31:30]} {[%emt 00:00:15]} Qxd5
{[%clk 01:31:47]} {[%emt 00:00:13]} 5. Nc3 {[%clk 01:31:36]} {[%emt 00:00:25]}
Qa5 {[%clk 01:31:27]} {[%emt 00:00:50]} 6. d4 {[%clk 01:30:08]} {[%emt
00:01:57]} e6 {[%clk 01:31:26]} {[%emt 00:00:32]} 7. Nf3 {[%clk 01:29:31]}
{[%emt 00:01:08]} Nf6 {[%clk 01:31:29]} {[%emt 00:00:26]} 8. Bd3 {[%clk
01:26:51]} {[%emt 00:03:09]} Bd7 {[%clk 01:20:20]} {[%emt 00:11:39]} 9. O-O
{[%clk 01:24:52]} {[%emt 00:02:29]} Be7 {[%clk 01:15:14]} {[%emt 00:05:36]} 10.
Re1 {[%clk 01:21:53]} {[%emt 00:03:30]} Nc6 {[%clk 01:12:35]} {[%emt 00:03:09]}
11. Bd2 {[%clk 01:10:53]} {[%emt 00:11:29]} Nb4 {[%clk 01:01:22]} {[%emt
00:11:44]} 12. Bb1 {[%clk 01:03:45]} {[%emt 00:07:37]} Qc7 {[%clk 00:54:19]}
{[%emt 00:07:33]} 13. Ne5 {[%clk 00:53:55]} {[%emt 00:10:20]} Bc6 {[%clk
00:53:05]} {[%emt 00:01:44]} 14. a3 {[%clk 00:48:54]} {[%emt 00:05:32]} Nbd5
{[%clk 00:53:24]} {[%emt 00:00:11]} 15. Nxc6 {[%clk 00:47:15]} {[%emt
00:02:08]} Qxc6 {[%clk 00:52:14]} {[%emt 00:01:41]} 16. Bd3 {[%clk 00:44:18]}
{[%emt 00:03:26]} a6 {[%clk 00:51:04]} {[%emt 00:01:41]} 17. Rc1 {[%clk
00:43:33]} {[%emt 00:01:15]} Qb6 {[%clk 00:47:19]} {[%emt 00:04:15]} 18. Qa4+
{[%clk 00:41:00]} {[%emt 00:03:02]} Kf8 {[%clk 00:46:20]} {[%emt 00:01:29]} 19.
Rb1 {[%clk 00:35:54]} {[%emt 00:05:36]} Rc8 {[%clk 00:43:46]} {[%emt 00:03:05]}
20. Ne4 {[%clk 00:32:20]} {[%emt 00:04:04]} h5 {[%clk 00:39:50]} {[%emt
00:04:25]} 21. Nc5 {[%clk 00:28:20]} {[%emt 00:04:31]} g6 {[%clk 00:37:49]}
{[%emt 00:02:31]} 22. Rbc1 {[%clk 00:21:33]} {[%emt 00:07:16]} Kg7 {[%clk
00:36:55]} {[%emt 00:01:24]} 23. b4 {[%clk 00:20:19]} {[%emt 00:01:45]} Rhd8
{[%clk 00:35:29]} {[%emt 00:01:56]} 24. Qb3 {[%clk 00:16:22]} {[%emt 00:04:27]}
Nc7 {[%clk 00:29:24]} {[%emt 00:06:34]} 25. Qb2 {[%clk 00:13:05]} {[%emt
00:03:48]} Nb5 {[%clk 00:26:31]} {[%emt 00:03:23]} 26. Be3 {[%clk 00:09:49]}
{[%emt 00:03:45]} Nd5 {[%clk 00:24:41]} {[%emt 00:02:20]} 27. Be4 {[%clk
00:08:08]} {[%emt 00:02:11]} Bf6 {[%clk 00:23:50]} {[%emt 00:01:22]} 28. a4
{[%clk 00:05:11]} {[%emt 00:03:27]} Nd6 {[%clk 00:22:25]} {[%emt 00:01:54]} 29.
Bf3 {[%clk 00:03:39]} {[%emt 00:02:02]} Nf5 {[%clk 00:13:20]} {[%emt 00:09:35]}
30. Bxd5 {[%clk 00:03:18]} {[%emt 00:00:52]} Rxd5 {[%clk 00:12:05]} {[%emt
00:01:44]} 31. Nxe6+ {[%clk 00:01:39]} {[%emt 00:02:09]} Qxe6 {[%clk 00:12:21]}
{[%emt 00:00:14]} 32. Bh6+ {[%clk 00:01:37]} {[%emt 00:00:32]} Kxh6 {[%clk
00:11:40]} {[%emt 00:01:12]} 33. Rxe6 {[%clk 00:01:59]} {[%emt 00:00:08]} Rxc1+
{[%clk 00:11:49]} {[%emt 00:00:21]} 34. Qxc1+ {[%clk 00:02:02]} {[%emt
00:00:27]} Bg5 {[%clk 00:12:16]} {[%emt 00:00:03]} 35. Qc8 {[%clk 00:01:09]}
{[%emt 00:01:23]} Rd8 {[%clk 00:11:53]} {[%emt 00:00:53]} 36. Rxg6+ {[%clk
00:00:39]} {[%emt 00:01:00]} fxg6 {[%clk 00:11:30]} {[%emt 00:00:52]} 37. Qxb7
{[%clk 00:00:36]} {[%emt 00:00:34]} Rxd4 {[%clk 00:10:25]} {[%emt 00:01:34]} 38.
h3 {[%clk 00:00:44]} {[%emt 00:00:22]} h4 {[%clk 00:07:18]} {[%emt 00:03:37]}
39. Kf1 {[%clk 00:00:34]} {[%emt 00:00:41]} Kh5 {[%clk 00:01:48]} {[%emt
00:05:59]} 40. Qh7+ {[%clk 00:00:42]} {[%emt 00:00:21]} Bh6 {[%clk 00:02:03]}
{[%emt 00:00:16]} 41. Qb7 {[%clk 00:29:05]} {[%emt 00:02:07]} Bd2 {[%clk
00:14:57]} {[%emt 00:17:36]} 42. b5 {[%clk 00:25:57]} {[%emt 00:03:38]} a5
{[%clk 00:14:57]} {[%emt 00:00:30]} 43. Qf3+ {[%clk 00:22:03]} {[%emt
00:04:24]} Kh6 {[%clk 00:13:58]} {[%emt 00:01:29]} 44. b6 {[%clk 00:21:01]}
{[%emt 00:01:33]} Rb4 {[%clk 00:11:25]} {[%emt 00:03:02]} 45. b7 {[%clk
00:20:15]} {[%emt 00:01:17]} Rb1+ {[%clk 00:11:01]} {[%emt 00:00:53]} 46. Ke2
{[%clk 00:20:07]} {[%emt 00:00:39]} Nd4+ {[%emt 00:00:08]} 0-1

[Event "The Schackveckan 2023: Chessweek Elo-tournaments Group 1"]
[Site "Göteborgs schackcentrum, Vegagatan 20, Gothenburg, Sweden"]
[Date "2023.08.08"]
[Round "4.3"]
[White "Harila, Per"]
[Black "Johansson, Eva"]
[Result "1/2-1/2"]
[TimeControl "90 minutes for 40 moves + 30 minutes for the rest of the game + 30 seconds per move from move one."]
[WhiteFideId "1707248"]
[BlackFideId "1724584"]
[WhiteElo "2016"]
[BlackElo "1808"]

1. d4 {[%clk 01:30:30]} {[%emt 19:36:12]} d6 {[%emt 00:01:17]} 2. Nf3 {[%clk
01:30:08]} {[%emt 00:00:36]} Nf6 {[%clk 01:30:49]} {[%emt 00:00:10]} 3. Bf4
{[%clk 01:29:58]} {[%emt 00:00:40]} g6 {[%clk 01:30:41]} {[%emt 00:00:40]} 4.
Nc3 {[%clk 01:29:47]} {[%emt 00:00:40]} c6 {[%clk 01:28:03]} {[%emt 00:03:08]}
5. Qd2 {[%clk 01:29:47]} {[%emt 00:00:31]} b5 {[%clk 01:27:17]} {[%emt
00:01:15]} 6. h4 {[%clk 01:27:09]} {[%emt 00:03:08]} h5 {[%clk 01:25:44]}
{[%emt 00:02:02]} 7. Ng5 {[%clk 01:27:10]} {[%emt 00:00:29]} Bg7 {[%clk
01:20:59]} {[%emt 00:05:15]} 8. f3 {[%clk 01:25:00]} {[%emt 00:02:41]} b4
{[%clk 01:14:24]} {[%emt 00:07:05]} 9. Nce4 {[%clk 01:25:02]} {[%emt 00:00:27]}
Nd5 {[%clk 01:14:45]} {[%emt 00:00:09]} 10. Bg3 {[%clk 01:20:54]} {[%emt
00:04:37]} a5 {[%clk 01:12:10]} {[%emt 00:03:07]} 11. e3 {[%clk 01:20:18]}
{[%emt 00:01:06]} Ba6 {[%clk 01:12:22]} {[%emt 00:00:17]} 12. Bd3 {[%clk
01:19:48]} {[%emt 00:01:01]} O-O {[%emt 00:04:26]} 13. Bf2 {[%emt 00:01:26]}
Bxd3 {[%clk 01:04:41]} {[%emt 00:02:19]} 14. cxd3 {[%clk 01:18:07]} {[%emt
00:02:11]} Qd7 {[%clk 01:04:15]} {[%emt 00:00:54]} 15. O-O {[%clk 01:17:23]}
{[%emt 00:01:16]} Na6 {[%clk 00:58:33]} {[%emt 00:06:09]} 16. Rac1 {[%clk
01:16:34]} {[%emt 00:01:23]} Rac8 {[%clk 00:56:06]} {[%emt 00:02:57]} 17. Rc2
{[%clk 01:11:39]} {[%emt 00:05:24]} f5 {[%clk 00:54:21]} {[%emt 00:02:14]} 18.
Ng3 {[%clk 01:11:46]} {[%emt 00:00:24]} f4 {[%clk 00:54:37]} {[%emt 00:00:15]}
19. Ne2 {[%clk 01:10:29]} {[%emt 00:01:47]} fxe3 {[%clk 00:53:20]} {[%emt
00:01:47]} 20. Bxe3 {[%clk 01:10:56]} {[%emt 00:00:02]} Nxe3 {[%clk 00:53:22]}
{[%emt 00:00:28]} 21. Qxe3 {[%clk 01:11:23]} {[%emt 00:00:04]} Nc7 {[%clk
00:53:27]} {[%emt 00:00:23]} 22. Rfc1 {[%clk 01:09:22]} {[%emt 00:02:33]} Nd5
{[%clk 00:50:27]} {[%emt 00:03:30]} 23. Qe6+ {[%clk 01:05:40]} {[%emt
00:04:12]} Qxe6 {[%clk 00:50:39]} {[%emt 00:00:18]} 24. Nxe6 {[%clk 01:06:07]}
{[%emt 00:00:03]} Bh6 {[%clk 00:47:20]} {[%emt 00:03:48]} 25. Nxf8 {[%clk
01:01:42]} {[%emt 00:04:56]} Bxc1 {[%clk 00:47:35]} {[%emt 00:00:13]} 26. Rxc1
{[%clk 01:02:10]} {[%emt 00:00:05]} Kxf8 {[%emt 00:02:34]} 1/2-1/2

[Event "The Schackveckan 2023: Chessweek Elo-tournaments Group 1"]
[Site "Göteborgs schackcentrum, Vegagatan 20, Gothenburg, Sweden"]
[Date "2023.08.08"]
[Round "4.4"]
[White "Havner, Arvid"]
[Black "Bengtsson, Jonas"]
[Result "1-0"]
[TimeControl "90 minutes for 40 moves + 30 minutes for the rest of the game + 30 seconds per move from move one."]
[WhiteFideId "1769308"]
[BlackFideId "1715135"]
[WhiteElo "1825"]
[BlackElo "2013"]

1. e4 {[%clk 01:30:58]} {[%emt 00:00:01]} c5 {[%clk 01:30:56]} {[%emt
00:00:05]} 2. Nf3 {[%clk 01:31:22]} {[%emt 00:00:05]} e6 {[%clk 01:31:21]}
{[%emt 00:00:05]} 3. d4 {[%clk 01:31:43]} {[%emt 00:00:10]} cxd4 {[%clk
01:31:47]} {[%emt 00:00:04]} 4. Nxd4 {[%clk 01:32:07]} {[%emt 00:00:06]} Nf6
{[%clk 01:32:12]} {[%emt 00:00:05]} 5. Nc3 {[%clk 01:32:29]} {[%emt 00:00:08]}
d6 {[%clk 01:32:38]} {[%emt 00:00:04]} 6. Bg5 {[%clk 01:32:04]} {[%emt
00:00:55]} Be7 {[%clk 01:32:51]} {[%emt 00:00:15]} 7. Qd2 {[%clk 01:30:15]}
{[%emt 00:02:20]} h6 {[%clk 01:29:51]} {[%emt 00:03:30]} 8. Bxf6 {[%clk
01:26:05]} {[%emt 00:04:41]} Bxf6 {[%clk 01:16:10]} {[%emt 00:14:12]} 9. Ndb5
{[%clk 01:22:43]} {[%emt 00:03:51]} O-O {[%clk 01:16:34]} {[%emt 00:00:06]} 10.
O-O-O {[%clk 01:20:00]} {[%emt 00:03:13]} Qb6 {[%clk 01:16:11]} {[%emt
00:00:53]} 11. Qxd6 {[%clk 01:18:22]} {[%emt 00:02:08]} Nc6 {[%clk 01:11:14]}
{[%emt 00:05:27]} 12. Qg3 {[%clk 01:10:51]} {[%emt 00:07:59]} a6 {[%clk
01:06:54]} {[%emt 00:04:51]} 13. Nd6 {[%clk 01:07:39]} {[%emt 00:03:42]} Bxc3
{[%clk 01:04:26]} {[%emt 00:02:59]} 14. Qxc3 {[%clk 01:07:10]} {[%emt
00:00:59]} Qxf2 {[%clk 01:04:45]} {[%emt 00:00:11]} 15. Bc4 {[%clk 01:01:02]}
{[%emt 00:06:37]} Qf4+ {[%clk 01:04:19]} {[%emt 00:00:56]} 16. Qd2 {[%clk
00:58:01]} {[%emt 00:03:31]} Qe5 {[%clk 01:02:04]} {[%emt 00:02:46]} 17. Qf2
{[%clk 00:56:43]} {[%emt 00:01:47]} b5 {[%clk 00:54:27]} {[%emt 00:08:08]} 18.
Bb3 {[%clk 00:53:49]} {[%emt 00:03:23]} Na5 {[%clk 00:38:54]} {[%emt 00:16:03]}
19. Rhf1 {[%clk 00:45:20]} {[%emt 00:09:00]} Nxb3+ {[%clk 00:37:05]} {[%emt
00:02:19]} 20. axb3 {[%clk 00:45:42]} {[%emt 00:00:08]} Qg5+ {[%clk 00:31:46]}
{[%emt 00:05:48]} 21. Qd2 {[%clk 00:41:22]} {[%emt 00:04:50]} Qxd2+ {[%clk
00:31:21]} {[%emt 00:00:56]} 22. Rxd2 {[%clk 00:41:44]} {[%emt 00:00:08]} Ra7
{[%clk 00:31:37]} {[%emt 00:00:14]} 23. e5 {[%clk 00:39:07]} {[%emt 00:03:06]}
Bd7 {[%clk 00:31:56]} {[%emt 00:00:12]} 24. c4 {[%clk 00:33:43]} {[%emt
00:05:53]} Bc6 {[%clk 00:29:39]} {[%emt 00:02:47]} 25. Kc2 {[%clk 00:32:49]}
{[%emt 00:01:25]} Rd8 {[%clk 00:26:54]} {[%emt 00:03:15]} 26. Kc3 {[%clk
00:31:52]} {[%emt 00:01:25]} bxc4 {[%clk 00:25:16]} {[%emt 00:02:10]} 27. bxc4
{[%clk 00:31:49]} {[%emt 00:00:33]} a5 {[%clk 00:25:06]} {[%emt 00:00:40]} 28.
Ra1 {[%clk 00:28:18]} {[%emt 00:04:00]} Rdd7 {[%clk 00:22:55]} {[%emt
00:02:42]} 29. Nc8 {[%clk 00:25:49]} {[%emt 00:02:58]} Ra6 {[%clk 00:16:25]}
{[%emt 00:07:01]} 30. Rxd7 {[%clk 00:25:25]} {[%emt 00:00:54]} Bxd7 {[%clk
00:16:49]} {[%emt 00:00:06]} 31. Nd6 {[%clk 00:25:49]} {[%emt 00:00:06]} Kf8
{[%clk 00:14:07]} {[%emt 00:03:13]} 32. Nb7 {[%clk 00:24:22]} {[%emt 00:01:56]}
Bc6 {[%clk 00:13:06]} {[%emt 00:01:32]} 33. Nxa5 {[%clk 00:24:45]} {[%emt
00:00:06]} Bxg2 {[%clk 00:13:31]} {[%emt 00:00:05]} 34. b4 {[%clk 00:25:01]}
{[%emt 00:00:13]} f5 {[%clk 00:13:40]} {[%emt 00:00:21]} 35. b5 {[%clk
00:24:49]} {[%emt 00:00:42]} Ra8 {[%clk 00:13:55]} {[%emt 00:00:16]} 36. b6
{[%clk 00:23:17]} {[%emt 00:02:01]} Ke8 {[%clk 00:13:12]} {[%emt 00:01:14]} 37.
Kb4 {[%clk 00:22:13]} {[%emt 00:01:33]} f4 {[%clk 00:10:30]} {[%emt 00:03:12]}
38. Rd1 {[%clk 00:16:51]} {[%emt 00:05:52]} g5 {[%clk 00:09:35]} {[%emt
00:01:25]} 39. c5 {[%clk 00:13:17]} {[%emt 00:04:04]} Rd8 {[%clk 00:01:23]}
{[%emt 00:08:42]} 40. b7 {[%clk 00:07:37]} {[%emt 00:06:11]} Rb8 {[%clk
00:00:57]} {[%emt 00:00:56]} 41. Kc3 {[%clk 00:01:34]} {[%emt 00:06:32]} Bd5
{[%clk 00:26:06]} {[%emt 00:05:22]} 42. h4 {[%clk 00:07:51]} {[%emt 00:24:13]}
g4 {[%clk 00:25:00]} {[%emt 00:01:35]} 43. Rd4 {[%clk 00:07:50]} {[%emt
00:00:32]} g3 {[%clk 00:11:32]} {[%emt 00:13:57]} 44. Rxf4 {[%clk 00:08:08]}
{[%emt 00:00:13]} g2 {[%clk 00:11:42]} {[%emt 00:00:20]} 45. Rg4 {[%clk
00:08:24]} {[%emt 00:00:13]} Kf8 {[%clk 00:11:43]} {[%emt 00:00:30]} 46. c6
{[%clk 00:08:28]} {[%emt 00:00:26]} Bxc6 {[%clk 00:12:06]} {[%emt 00:00:07]} 47.
Nxc6 {[%clk 00:08:52]} {[%emt 00:00:06]} Rxb7 {[%clk 00:12:31]} {[%emt
00:00:05]} 48. Nd4 {[%clk 00:08:46]} {[%emt 00:00:36]} Rg7 {[%clk 00:12:27]}
{[%emt 00:00:34]} 49. Nxe6+ {[%clk 00:09:05]} {[%emt 00:00:10]} 1-0

[Event "The Schackveckan 2023: Chessweek Elo-tournaments Group 1"]
[Site "Göteborgs schackcentrum, Vegagatan 20, Gothenburg, Sweden"]
[Date "2023.08.09"]
[Round "5.1"]
[White "Pettersson, Anders 1981"]
[Black "Havner, Arvid"]
[Result "0-1"]
[TimeControl "90 minutes for 40 moves + 30 minutes for the rest of the game + 30 seconds per move from move one."]
[WhiteFideId "1715143"]
[BlackFideId "1769308"]
[WhiteElo "2003"]
[BlackElo "1825"]

1. d4 {[%clk 01:30:36]} {[%emt 00:00:23]} Nf6 {[%clk 01:30:56]} {[%emt
00:00:05]} 2. c4 {[%clk 01:30:56]} {[%emt 00:00:10]} e6 {[%clk 01:29:51]}
{[%emt 00:01:35]} 3. Nc3 {[%clk 01:30:43]} {[%emt 00:00:43]} Bb4 {[%clk
01:29:40]} {[%emt 00:00:41]} 4. Bg5 {[%clk 01:30:54]} {[%emt 00:00:18]} c5
{[%clk 01:29:21]} {[%emt 00:00:49]} 5. d5 {[%clk 01:30:13]} {[%emt 00:01:11]}
exd5 {[%clk 01:28:52]} {[%emt 00:00:59]} 6. cxd5 {[%clk 01:30:34]} {[%emt
00:00:09]} d6 {[%clk 01:29:10]} {[%emt 00:00:13]} 7. Qc2 {[%clk 01:27:09]}
{[%emt 00:03:55]} O-O {[%clk 01:28:45]} {[%emt 00:00:55]} 8. e3 {[%clk
01:24:32]} {[%emt 00:03:07]} Nbd7 {[%clk 01:27:58]} {[%emt 00:01:17]} 9. Bd3
{[%clk 01:22:37]} {[%emt 00:02:24]} h6 {[%clk 01:25:53]} {[%emt 00:02:35]} 10.
h4 {[%clk 01:17:41]} {[%emt 00:05:26]} Qa5 {[%clk 01:18:28]} {[%emt 00:07:55]}
11. O-O-O {[%clk 01:12:38]} {[%emt 00:05:33]} Bxc3 {[%clk 01:16:27]} {[%emt
00:02:31]} 12. bxc3 {[%clk 01:13:03]} {[%emt 00:00:03]} b5 {[%clk 01:13:06]}
{[%emt 00:03:53]} 13. Ne2 {[%clk 01:09:33]} {[%emt 00:04:00]} b4 {[%clk
01:04:53]} {[%emt 00:08:44]} 14. c4 {[%clk 01:04:01]} {[%emt 00:06:02]} Ng4
{[%clk 00:59:40]} {[%emt 00:05:42]} 15. Bh7+ {[%clk 00:59:17]} {[%emt
00:05:14]} Kh8 {[%clk 00:58:41]} {[%emt 00:01:29]} 16. Nf4 {[%clk 00:57:08]}
{[%emt 00:02:40]} Qa3+ {[%clk 00:58:17]} {[%emt 00:00:53]} 17. Kb1 {[%clk
00:56:58]} {[%emt 00:00:40]} b3 {[%clk 00:52:50]} {[%emt 00:05:57]} 18. axb3
{[%clk 00:55:51]} {[%emt 00:01:36]} Rb8 {[%clk 00:53:11]} {[%emt 00:00:10]} 19.
Rd3 {[%clk 00:53:37]} {[%emt 00:02:45]} Kxh7 {[%clk 00:52:54]} {[%emt
00:00:47]} 20. Be7 {[%clk 00:43:39]} {[%emt 00:10:28]} Re8 {[%clk 00:50:36]}
{[%emt 00:02:47]} 21. Bxd6 {[%clk 00:42:27]} {[%emt 00:01:43]} Rb6 {[%clk
00:50:39]} {[%emt 00:00:26]} 22. Bc7 {[%clk 00:41:59]} {[%emt 00:00:59]} Ra6
{[%clk 00:49:46]} {[%emt 00:01:22]} 23. Rd2+ {[%clk 00:42:01]} {[%emt
00:00:28]} Kg8 {[%clk 00:49:49]} {[%emt 00:00:26]} 24. Qb2 {[%clk 00:39:40]}
{[%emt 00:02:52]} Qxb2+ {[%clk 00:49:55]} {[%emt 00:00:24]} 25. Kxb2 {[%clk
00:38:37]} {[%emt 00:01:33]} Ndf6 {[%clk 00:48:50]} {[%emt 00:01:35]} 26. Nd3
{[%clk 00:31:43]} {[%emt 00:07:25]} Ne4 {[%clk 00:43:14]} {[%emt 00:06:06]} 27.
Re2 {[%clk 00:31:55]} {[%emt 00:00:16]} Re7 {[%clk 00:39:32]} {[%emt 00:04:11]}
28. Bf4 {[%clk 00:21:26]} {[%emt 00:11:01]} g5 {[%clk 00:38:58]} {[%emt
00:01:03]} 29. hxg5 {[%clk 00:20:43]} {[%emt 00:01:13]} hxg5 {[%clk 00:39:19]}
{[%emt 00:00:10]} 30. f3 {[%clk 00:17:26]} {[%emt 00:03:47]} gxf4 {[%clk
00:39:27]} {[%emt 00:00:22]} 31. fxe4 {[%clk 00:17:50]} {[%emt 00:00:06]} fxe3
{[%clk 00:37:55]} {[%emt 00:02:02]} 32. Nxc5 {[%clk 00:18:03]} {[%emt
00:00:17]} Rf6 {[%clk 00:37:19]} {[%emt 00:01:06]} 33. Kc3 {[%clk 00:15:57]}
{[%emt 00:02:37]} Re5 {[%clk 00:24:22]} {[%emt 00:13:26]} 34. Kd4 {[%clk
00:13:16]} {[%emt 00:03:12]} Re8 {[%clk 00:21:30]} {[%emt 00:03:21]} 35. Ra1
{[%clk 00:12:03]} {[%emt 00:01:42]} a6 {[%clk 00:16:48]} {[%emt 00:05:14]} 36.
Nd3 {[%clk 00:12:27]} {[%emt 00:00:04]} Kf8 {[%clk 00:16:03]} {[%emt 00:01:17]}
37. Rh1 {[%clk 00:08:10]} {[%emt 00:04:46]} Kg7 {[%clk 00:11:43]} {[%emt
00:04:50]} 38. c5 {[%clk 00:03:49]} {[%emt 00:04:52]} Nf2 {[%clk 00:08:19]}
{[%emt 00:03:53]} 39. Nxf2 {[%clk 00:02:51]} {[%emt 00:01:28]} exf2 {[%clk
00:08:47]} {[%emt 00:00:02]} 40. Rf1 {[%clk 00:03:13]} {[%emt 00:00:08]} Rf4
{[%clk 00:09:08]} {[%emt 00:00:09]} 41. Rfxf2 {[%clk 00:24:15]} {[%emt
00:09:28]} Rexe4+ {[%clk 00:39:13]} {[%emt 00:00:25]} 42. Rxe4 {[%clk
00:24:06]} {[%emt 00:00:39]} Rxf2 {[%clk 00:39:35]} {[%emt 00:00:08]} 43. c6
{[%clk 00:20:38]} {[%emt 00:03:58]} Kf6 {[%clk 00:08:09]} {[%emt 00:31:54]} 44.
d6 {[%clk 00:17:23]} {[%emt 00:03:48]} Be6 {[%clk 00:06:02]} {[%emt 00:02:36]}
45. Re3 {[%clk 00:12:52]} {[%emt 00:05:01]} Rd2+ {[%clk 00:05:44]} {[%emt
00:00:48]} 46. Kc5 {[%clk 00:09:45]} {[%emt 00:03:37]} Rd5+ {[%clk 00:06:10]}
{[%emt 00:00:03]} 47. Kb6 {[%clk 00:10:06]} {[%emt 00:00:09]} Rxd6 {[%clk
00:06:23]} {[%emt 00:00:18]} 48. Rc3 {[%clk 00:09:59]} {[%emt 00:00:37]} Bd5
{[%clk 00:04:44]} {[%emt 00:02:09]} 49. g3 {[%clk 00:09:42]} {[%emt 00:00:47]}
Ke7 {[%clk 00:03:54]} {[%emt 00:01:20]} 50. b4 {[%clk 00:09:13]} {[%emt
00:01:00]} Kd8 {[%clk 00:03:10]} {[%emt 00:01:12]} 51. Rc5 {[%clk 00:07:53]}
{[%emt 00:01:52]} f5 {[%clk 00:02:59]} {[%emt 00:00:41]} 52. Kb7 {[%clk
00:06:56]} {[%emt 00:01:27]} Be4 {[%clk 00:02:23]} {[%emt 00:01:06]} 53. Kb6
{[%clk 00:05:38]} {[%emt 00:01:47]} Rg6 {[%clk 00:02:19]} {[%emt 00:00:34]} 54.
Rc4 {[%clk 00:05:16]} {[%emt 00:00:52]} Rxg3 {[%clk 00:01:14]} {[%emt
00:01:35]} 55. Rd4+ {[%clk 00:04:50]} {[%emt 00:00:56]} Kc8 {[%clk 00:01:30]}
{[%emt 00:00:15]} 56. Kxa6 {[%clk 00:05:01]} {[%emt 00:00:19]} Bxc6 {[%clk
00:01:22]} {[%emt 00:00:37]} 57. b5 {[%clk 00:04:49]} {[%emt 00:00:43]} Ra3+
{[%clk 00:01:14]} {[%emt 00:00:38]} 58. Kb6 {[%clk 00:05:12]} {[%emt 00:00:07]}
Be4 {[%clk 00:01:41]} {[%emt 00:00:02]} 59. Rc4+ {[%clk 00:03:33]} {[%emt
00:02:10]} Kd7 {[%clk 00:02:09]} {[%emt 00:00:01]} 60. Kc5 {[%clk 00:03:40]}
{[%emt 00:00:23]} Rb3 {[%clk 00:01:53]} {[%emt 00:00:45]} 61. Rd4+ {[%clk
00:03:28]} {[%emt 00:00:43]} Ke6 {[%clk 00:02:16]} {[%emt 00:00:07]} 62. b6
{[%clk 00:03:13]} {[%emt 00:00:46]} Ke5 {[%clk 00:02:28]} {[%emt 00:00:17]} 63.
Rd8 {[%clk 00:03:02]} {[%emt 00:00:42]} Kf4 {[%clk 00:02:39]} {[%emt 00:00:18]}
64. Rd6 {[%clk 00:03:12]} {[%emt 00:00:20]} Kf3 {[%clk 00:02:52]} {[%emt
00:00:17]} 65. Rf6 {[%clk 00:03:36]} {[%emt 00:00:07]} f4 {[%clk 00:02:40]}
{[%emt 00:00:41]} 66. Kd4 {[%clk 00:03:58]} {[%emt 00:00:07]} Rd3+ {[%clk
00:03:02]} {[%emt 00:00:09]} 67. Ke5 {[%clk 00:04:18]} {[%emt 00:00:10]} Rd5+
{[%clk 00:03:28]} {[%emt 00:00:04]} 68. Ke6 {[%clk 00:04:41]} {[%emt 00:00:07]}
Rb5 {[%clk 00:03:08]} {[%emt 00:00:49]} 69. Kd7 {[%clk 00:04:46]} {[%emt
00:00:27]} Ke3 {[%clk 00:03:24]} {[%emt 00:00:13]} 70. Kc7 {[%clk 00:05:02]}
{[%emt 00:00:16]} f3 {[%clk 00:03:39]} {[%emt 00:00:14]} 71. Rf8 {[%clk
00:05:10]} {[%emt 00:00:22]} f2 {[%clk 00:03:47]} {[%emt 00:00:21]} 0-1